lending/lending_fUSD_20240510
["ID","MTS","AMOUNT","RATE_DAILY","PERIOD"]
[326751644,1715308245075,-500.0,0.00027397,4]
[326751645,1715308245085,-505.83453343,0.00027397,4]
[326751646,1715308245094,-500.0,0.00027397,4]
[326751647,1715308245103,-500.0,0.00027397,4]
[326751648,1715308245113,-500.0,0.00027397,4]
[326751649,1715308245122,-500.0,0.00027397,4]
[326751650,1715308245132,-762.24,0.00027397,4]
[326751651,1715308245142,-786.08,0.00027397,4]
[326751652,1715308245153,-671.3,0.00027397,4]
[326751653,1715308245162,-733.78,0.00027397,4]
[326751654,1715308245172,-500.0,0.00027397,4]
[326751655,1715308245181,-514.86,0.00027397,4]
[326751656,1715308245190,-499.63313048,0.00027397,4]
[326751657,1715308245200,-507.62101638,0.00027397,4]
[326751658,1715308245209,-500.0,0.00027397,4]
[326751659,1715308245218,-507.03587026,0.00027397,4]
[326751660,1715308245227,-151.0,0.00027397,7]
[326751661,1715308245236,-152.683816,0.00027397,7]
[326751662,1715308245246,-576.53,0.00027397,4]
[326751663,1715308245255,-500.0,0.00027397,4]
[326751664,1715308245264,-506.88904933,0.00027397,4]
[326751665,1715308245273,-509.0809176,0.00027397,4]
[326751666,1715308245282,-500.0,0.00027397,4]
[326751667,1715308245292,-507.23100043,0.00027397,4]
[326751668,1715308245301,-500.0,0.00027397,4]
[326751669,1715308245310,-514.49809073,0.00027397,4]
[326751670,1715308245319,-503.74066133,0.00027397,4]
[326751671,1715308245330,-500.0,0.00027397,4]
[326751672,1715308245339,-511.28328434,0.00027397,4]
[326751673,1715308245349,-510.49538266,0.00027397,4]
[326751674,1715308245358,-1237.98,0.00027397,4]
[326751675,1715308245367,-509.04576481,0.00027397,4]
[326751676,1715308245376,-506.02571103,0.00027397,4]
[326751677,1715308245385,-815.43,0.00027397,4]
[326751678,1715308245395,-787.45,0.00027397,4]
[326751679,1715308245404,-500.0,0.00027397,4]
[326751680,1715308245413,-500.0,0.00027397,4]
[326751681,1715308245422,-521.99,0.00027397,4]
[326751682,1715308245431,-505.801083,0.00027397,4]
[326751683,1715308245440,-518.11176534,0.00027397,4]
[326751684,1715308245450,-500.0,0.00027397,4]
[326751685,1715308245463,-500.0,0.00027397,4]
[326751686,1715308245472,-500.0,0.00027397,4]
[326751687,1715308245481,-905.18,0.00027397,4]
[326751688,1715308245491,-545.1,0.00027397,4]
[326751689,1715308245501,-507.95283958,0.00027397,4]
[326751690,1715308245510,-689.38,0.00027397,4]
[326751691,1715308245519,-500.0,0.00027397,4]
[326751692,1715308245528,-528.36,0.00027397,4]
[326751693,1715308245540,-500.0,0.00027397,4]
[326751694,1715308245549,-500.0,0.00027397,4]
[326751695,1715308245558,-500.0,0.00027397,4]
[326751696,1715308245567,-824.68,0.00027397,4]
[326751697,1715308245576,-507.02456789,0.00027397,4]
[326751698,1715308245586,-299.79739591,0.00027397,4]
[326751699,1715308245595,-500.0,0.00027397,4]
[326751700,1715308245604,-500.0,0.00027397,4]
[326751701,1715308245613,-500.0,0.00027397,4]
[326751702,1715308245622,-500.0,0.00027397,4]
[326751703,1715308245632,-371.811326,0.00027397,4]
[326751704,1715308245642,-151.705487,0.00027397,7]
[326751705,1715308245651,-508.69841347,0.00027397,4]
[326751706,1715308245660,-610.01,0.00027397,4]
[326751707,1715308245669,-509.41605623,0.00027397,4]
[326751708,1715308245679,-599.99,0.00027397,4]
[326751709,1715308245688,-927.48,0.00027397,4]
[326751710,1715308245697,-500.0,0.00027397,4]
[326751711,1715308245706,-503.77263857,0.00027397,4]
[326751712,1715308245716,-500.0,0.00027397,4]
[326751713,1715308245725,-500.0,0.00027397,4]
[326751714,1715308245736,-503.74558598,0.00027397,4]
[326751715,1715308245745,-724.61,0.00027397,4]
[326751716,1715308245754,-500.0,0.00027397,4]
[326751717,1715308245764,-508.06842316,0.00027397,4]
[326751718,1715308245774,-500.0,0.00027397,4]
[326751719,1715308245784,-504.76,0.00027397,4]
[326751720,1715308245794,-500.0,0.00027397,4]
[326751721,1715308245803,-500.0,0.00027397,4]
[326751722,1715308245813,-674.96,0.00027397,4]
[326751723,1715308245823,-507.10145597,0.00027397,4]
[326751724,1715308245832,-504.1835403,0.00027397,4]
[326751725,1715308245841,-731.61,0.00027397,4]
[326751726,1715308245851,-549.44,0.00027397,4]
[326751727,1715308245860,-500.0,0.00027397,4]
[326751728,1715308245869,-500.0,0.00027397,4]
[326751729,1715308245879,-511.78920321,0.00027397,4]
[326751730,1715308245888,-1107.55,0.00027397,4]
[326751731,1715308245898,-500.0,0.00027397,4]
[326751732,1715308246023,-151.937742,0.00027397,7]
[326751733,1715308246040,-497.22295722,0.00027397,4]
[326751734,1715308246050,-500.0,0.00027397,4]
[326751735,1715308246059,-500.0,0.00027397,4]
[326751736,1715308246069,-669.76,0.00027397,4]
[326751737,1715308246078,-262.66837685,0.00027397,4]
[326751738,1715308246087,-500.41,0.00027397,4]
[326751739,1715308246097,-500.0,0.00027397,4]
[326751740,1715308246106,-506.20428443,0.00027397,4]
[326751741,1715308246115,-500.0,0.00027397,4]
[326751742,1715308246124,-151.0,0.00027397,7]
[326751743,1715308246134,-500.0,0.00027397,4]
[326751744,1715308246143,-500.0,0.00027397,4]
[326751745,1715308246153,-151.0,0.00027397,7]
[326751746,1715308246162,-151.0,0.00027397,7]
[326751747,1715308246171,-151.0,0.00027397,7]
[326751748,1715308246180,-151.0,0.00027397,7]
[326751749,1715308246190,-217.51719,0.00027397,7]
[326751750,1715308246199,-186.12174073,0.00027397,4]
[326751751,1715308246208,-151.0,0.00027397,7]
[326751752,1715308246217,-151.948396,0.00027397,7]
[326751753,1715308246227,-500.0,0.00027397,4]
[326751754,1715308246236,-500.0,0.00027397,4]
[326751755,1715308246245,-734.96,0.00027397,4]
[326751756,1715308246255,-718.72,0.00027397,4]
[326751757,1715308246264,-508.04213452,0.00027397,4]
[326751758,1715308246273,-538.73,0.00027397,4]
[326751759,1715308246282,-595.66,0.00027397,4]
[326751760,1715308246292,-703.67,0.00027397,4]
[326751761,1715308246301,-500.0,0.00027397,4]
[326751762,1715308246311,-500.0,0.00027397,4]
[326751763,1715308246320,-500.0,0.00027397,4]
[326751764,1715308246329,-694.41,0.00027397,4]
[326751765,1715308246339,-634.8,0.00027397,4]
[326751766,1715308246348,-500.0,0.00027397,4]
[326751767,1715308246357,-500.0,0.00027397,4]
[326751768,1715308246366,-500.0,0.00027397,4]
[326751769,1715308246379,-518.47807262,0.00027397,4]
[326751770,1715308246389,-972.23,0.00027397,4]
[326751771,1715308246398,-500.0,0.00027397,4]
[326751772,1715308246407,-1651.68,0.00027397,4]
[326751773,1715308246417,-151.0,0.00027397,7]
[326751774,1715308246426,-423.68633618,0.00027397,4]
[326751775,1715308246435,-151.0,0.00027397,7]
[326751776,1715308246445,-151.0,0.00027397,7]
[326751777,1715308246458,-155.697201,0.00027397,7]
[326751778,1715308246467,-187.17762717,0.00027397,4]
[326751779,1715308246476,-500.0,0.00027397,4]
[326751780,1715308246486,-500.0,0.00027397,4]
[326751781,1715308246495,-500.0,0.00027397,4]
[326751782,1715308246505,-500.0,0.00027397,4]
[326751783,1715308246515,-500.0,0.00027397,4]
[326751784,1715308246524,-500.0,0.00027397,4]
[326751785,1715308246534,-500.0,0.00027397,4]
[326751786,1715308246543,-500.0,0.00027397,4]
[326751787,1715308246553,-500.0,0.00027397,4]
[326751788,1715308246562,-500.0,0.00027397,4]
[326751789,1715308246571,-500.0,0.00027397,4]
[326751790,1715308246581,-500.0,0.00027397,4]
[326751791,1715308246590,-500.0,0.00027397,4]
[326751792,1715308246599,-932.07,0.00027397,4]
[326751793,1715308246608,-761.21,0.00027397,4]
[326751794,1715308246617,-500.0,0.00027397,4]
[326751795,1715308246627,-525.37,0.00027397,4]
[326751796,1715308246636,-500.0,0.00027397,4]
[326751797,1715308246645,-500.0,0.00027397,4]
[326751798,1715308246654,-151.0,0.00027397,7]
[326751799,1715308246664,-151.0,0.00027397,7]
[326751800,1715308246674,-153.597142,0.00027397,7]
[326751801,1715308246683,-500.0,0.00027397,4]
[326751802,1715308246693,-713.56,0.00027397,4]
[326751803,1715308246702,-1032.75,0.00027397,4]
[326751804,1715308246711,-500.0,0.00027397,4]
[326751805,1715308246721,-500.0,0.00027397,4]
[326751806,1715308246730,-532.30775321,0.00027397,4]
[326751807,1715308246741,-250.04859581,0.00027397,4]
[326751808,1715308246752,-500.0,0.00027397,4]
[326751809,1715308246761,-360.83948593,0.00027397,4]
[326751810,1715308246771,-499.96300513,0.00027397,4]
[326751811,1715308246780,-500.0,0.00027397,4]
[326751812,1715308246789,-500.0,0.00027397,4]
[326751813,1715308246798,-500.0,0.00027397,4]
[326751814,1715308246807,-519.91,0.00027397,4]
[326751815,1715308246816,-500.0,0.00027397,4]
[326751816,1715308246826,-506.16303002,0.00027397,4]
[326751817,1715308246835,-660.31,0.00027397,4]
[326751818,1715308246845,-510.97,0.00027397,4]
[326751819,1715308246854,-780.2,0.00027397,4]
[326751820,1715308246864,-500.0,0.00027397,4]
[326751821,1715308246874,-500.0,0.00027397,4]
[326751822,1715308246884,-500.0,0.00027397,4]
[326751823,1715308246894,-153.590164,0.00027397,7]
[326751824,1715308246903,-645.44,0.00027397,4]
[326751825,1715308246912,-505.40161234,0.00027397,4]
[326751826,1715308246923,-150.0,0.00027397,4]
[326751827,1715308246932,-500.0,0.00027397,4]
[326751828,1715308246940,-500.0,0.00027397,4]
[326751829,1715308246950,-506.22091877,0.00027397,4]
[326751830,1715308246959,-240.8639393,0.00027397,4]
[326751831,1715308246968,-151.0,0.00027397,7]
[326751832,1715308246977,-151.0,0.00027397,7]
[326751833,1715308246987,-151.0,0.00027397,7]
[326751834,1715308246997,-151.0,0.00027397,7]
[326751835,1715308247006,-151.0,0.00027397,7]
[326751836,1715308247015,-151.0,0.00027397,7]
[326751837,1715308247026,-152.131267,0.00027397,7]
[326751838,1715308247035,-151.0,0.00027397,7]
[326751839,1715308247044,-151.0,0.00027397,7]
[326751840,1715308247054,-151.0,0.00027397,7]
[326751841,1715308247063,-152.753827,0.00027397,7]
[326751842,1715308247072,-151.0,0.00027397,7]
[326751843,1715308247082,-507.12985128,0.00027397,4]
[326751844,1715308247092,-151.0,0.00027397,7]
[326751845,1715308247101,-695.54,0.00027397,4]
[326751846,1715308247111,-151.0,0.00027397,7]
[326751847,1715308247120,-500.0,0.00027397,4]
[326751848,1715308247129,-151.0,0.00027397,7]
[326751849,1715308247139,-151.0,0.00027397,7]
[326751850,1715308247148,-151.0,0.00027397,7]
[326751851,1715308247157,-212.173816,0.00027397,7]
[326751852,1715308247166,-152.833773,0.00027397,7]
[326751853,1715308247176,-523.99,0.00027397,4]
[326751854,1715308247185,-539.33,0.00027397,4]
[326751855,1715308247195,-500.0,0.00027397,4]
[326751856,1715308247204,-500.0,0.00027397,4]
[326751857,1715308247213,-509.89898919,0.00027397,4]
[326751858,1715308247222,-607.83,0.00027397,4]
[326751859,1715308247232,-879.94,0.00027397,4]
[326751860,1715308247242,-502.0554648,0.00027397,4]
[326751861,1715308247251,-500.0,0.00027397,4]
[326751862,1715308247260,-500.0,0.00027397,4]
[326751863,1715308247269,-504.87737836,0.00027397,4]
[326751864,1715308247279,-500.0,0.00027397,4]
[326751865,1715308247288,-504.47399263,0.00027397,4]
[326751866,1715308247297,-500.0,0.00027397,4]
[326751867,1715308247306,-500.0,0.00027397,4]
[326751868,1715308247316,-500.0,0.00027397,4]
[326751869,1715308247325,-500.0,0.00027397,4]
[326751870,1715308247334,-510.1,0.00027397,4]
[326751871,1715308247343,-505.00547598,0.00027397,4]
[326751872,1715308247352,-800.7,0.00027397,4]
[326751873,1715308247362,-583.58,0.00027397,4]
[326751874,1715308247371,-151.0,0.00027397,7]
[326751875,1715308247383,-500.0,0.00027397,4]
[326751876,1715308247392,-500.0,0.00027397,4]
[326751877,1715308247402,-151.0,0.00027397,7]
[326751878,1715308247411,-151.0,0.00027397,7]
[326751879,1715308247421,-151.0,0.00027397,7]
[326751880,1715308247432,-151.0,0.00027397,7]
[326751881,1715308247441,-151.0,0.00027397,7]
[326751882,1715308247451,-151.0,0.00027397,7]
[326751883,1715308247466,-508.04346531,0.00027397,4]
[326751884,1715308247476,-151.0,0.00027397,7]
[326751885,1715308247485,-508.15348857,0.00027397,4]
[326751886,1715308247496,-500.0,0.00027397,4]
[326751887,1715308247506,-513.5281937,0.00027397,4]
[326751888,1715308247515,-201.43644403,0.00027397,4]
[326751889,1715308247525,-505.61062812,0.00027397,4]
[326751890,1715308247537,-500.0,0.00027397,4]
[326751891,1715308247547,-500.0,0.00027397,4]
[326751892,1715308247557,-500.0,0.00027397,4]
[326751893,1715308247566,-500.0,0.00027397,4]
[326751894,1715308247575,-500.0,0.00027397,5]
[326751895,1715308247584,-500.0,0.00027397,6]
[326751896,1715308247593,-500.0,0.00027397,7]
[326751897,1715308247602,-500.0,0.00027397,8]
[326751898,1715308247611,-500.0,0.00027397,9]
[326751899,1715308247621,-516.29429828,0.00027397,10]
[326751900,1715308247630,-500.0,0.00027397,4]
[326751901,1715308247639,-504.19214842,0.00027397,4]
[326751902,1715308247650,-500.0,0.00027397,4]
[326751903,1715308247659,-504.1608129,0.00027397,4]
[326751904,1715308247669,-1247.34,0.00027397,4]
[326751905,1715308247682,-500.0,0.00027397,4]
[326751906,1715308247691,-151.0,0.00027397,7]
[326751907,1715308247701,-314.853181,0.00027397,7]
[326751908,1715308247710,-151.0,0.00027397,7]
[326751909,1715308247719,-507.90179978,0.00027397,4]
[326751910,1715308247730,-151.0,0.00027397,7]
[326751911,1715308247740,-314.853181,0.00027397,7]
[326751912,1715308247751,-224.953374,0.00027397,7]
[326751913,1715308247761,-314.853181,0.00027397,7]
[326751914,1715308247773,-500.0,0.00027397,4]
[326751915,1715308247782,-314.853181,0.00027397,7]
[326751916,1715308247793,-314.853181,0.00027397,7]
[326751917,1715308247805,-314.853181,0.00027397,7]
[326751918,1715308247815,-314.853181,0.00027397,7]
[326751919,1715308247824,-314.853181,0.00027397,7]
[326751920,1715308247833,-500.0,0.00027397,4]
[326751921,1715308247842,-314.853181,0.00027397,7]
[326751922,1715308247851,-314.853181,0.00027397,7]
[326751923,1715308247861,-314.853181,0.00027397,7]
[326751924,1715308247870,-510.53285397,0.00027397,4]
[326751925,1715308247879,-314.853181,0.00027397,7]
[326751926,1715308247888,-314.853181,0.00027397,7]
[326751927,1715308247898,-314.853181,0.00027397,7]
[326751928,1715308247907,-500.0,0.00027397,4]
[326751929,1715308247918,-1705.79,0.00027397,4]
[326751930,1715308247928,-500.0,0.00027397,4]
[326751931,1715308247937,-314.853181,0.00027397,7]
[326751932,1715308247947,-151.0,0.00027397,7]
[326751933,1715308247957,-500.0,0.00027397,4]
[326751934,1715308247967,-314.853185,0.00027397,7]
[326751935,1715308247977,-151.0,0.00027397,7]
[326751936,1715308247987,-500.0,0.00027397,4]
[326751937,1715308247997,-500.0,0.00027397,4]
[326751938,1715308248007,-500.0,0.00027397,4]
[326751939,1715308248017,-151.0,0.00027397,7]
[326751940,1715308248027,-151.0,0.00027397,7]
[326751941,1715308248036,-151.0,0.00027397,7]
[326751942,1715308248045,-151.0,0.00027397,7]
[326751943,1715308248055,-152.068366,0.00027397,7]
[326751944,1715308248065,-151.0,0.00027397,7]
[326751945,1715308248075,-151.0,0.00027397,7]
[326751946,1715308248084,-258.363569,0.00027397,7]
[326751947,1715308248094,-513.12819981,0.00027397,4]
[326751948,1715308248103,-875.81,0.00027397,4]
[326751949,1715308248113,-1576.55,0.00027397,4]
[326751950,1715308248122,-500.0,0.00027397,4]
[326751951,1715308248132,-151.0,0.00027397,7]
[326751952,1715308248142,-151.88101,0.00027397,7]
[326751953,1715308248152,-511.34171069,0.00027397,4]
[326751954,1715308248161,-435.7,0.00027397,4]
[326751955,1715308248170,-500.0,0.00027397,4]
[326751956,1715308248181,-500.0,0.00027397,4]
[326751957,1715308248189,-500.0,0.00027397,4]
[326751958,1715308248199,-504.28403124,0.00027397,4]
[326751959,1715308248209,-542.72,0.00027397,4]
[326751960,1715308248219,-509.65076914,0.00027397,4]
[326751961,1715308248229,-500.0,0.00027397,4]
[326751962,1715308248516,-500.0,0.00027397,4]
[326751963,1715308248541,-500.0,0.00027397,2]
[326751964,1715308248551,-151.0,0.00027397,7]
[326751965,1715308248560,-152.7682,0.00027397,7]
[326751966,1715308248569,-703.85,0.00027397,4]
[326751967,1715308248578,-1388.27,0.00027397,4]
[326751968,1715308248587,-500.0,0.00027397,4]
[326751969,1715308248596,-1823.1,0.00027397,4]
[326751970,1715308248606,-500.0,0.00027397,4]
[326751971,1715308248615,-500.0,0.00027397,4]
[326751972,1715308248624,-500.0,0.00027397,4]
[326751973,1715308248633,-291.671736,0.00027397,7]
[326751974,1715308248642,-545.37,0.00027397,4]
[326751975,1715308248651,-508.37856143,0.00027397,4]
[326751976,1715308248661,-500.0,0.00027397,4]
[326751977,1715308248670,-1066.53,0.00027397,4]
[326751978,1715308248680,-502.72201192,0.00027397,4]
[326751979,1715308248689,-291.671736,0.00027397,7]
[326751980,1715308248698,-500.26045264,0.00027397,2]
[326751981,1715308248707,-291.671736,0.00027397,7]
[326751982,1715308248716,-291.671736,0.00027397,7]
[326751983,1715308248725,-291.671736,0.00027397,7]
[326751984,1715308248735,-500.0,0.00027397,4]
[326751985,1715308248744,-1144.26,0.00027397,4]
[326751986,1715308248753,-291.671736,0.00027397,7]
[326751987,1715308248762,-291.671736,0.00027397,7]
[326751988,1715308248772,-291.671736,0.00027397,7]
[326751989,1715308248782,-184.0,0.00027397,4]
[326751990,1715308248792,-567.45,0.00027397,4]
[326751991,1715308248801,-291.671736,0.00027397,7]
[326751992,1715308248811,-500.0,0.00027397,4]
[326751993,1715308248819,-291.671736,0.00027397,7]
[326751994,1715308248830,-291.671736,0.00027397,7]
[326751995,1715308248839,-541.61,0.00027397,4]
[326751996,1715308248848,-291.671736,0.00027397,7]
[326751997,1715308248859,-291.671736,0.00027397,7]
[326751998,1715308248869,-291.671736,0.00027397,7]
[326751999,1715308248879,-500.0,0.00027397,4]
[326752000,1715308248889,-151.0,0.00027397,7]
[326752001,1715308248898,-291.671736,0.00027397,7]
[326752002,1715308248909,-500.0,0.00027397,4]
[326752003,1715308248919,-291.671741,0.00027397,7]
[326752004,1715308248930,-556.89,0.00027397,4]
[326752005,1715308248939,-935.7,0.00027397,4]
[326752006,1715308248948,-151.0,0.00027397,7]
[326752007,1715308248957,-151.0,0.00027397,7]
[326752008,1715308248966,-151.0,0.00027397,7]
[326752009,1715308248975,-570.96,0.00027397,4]
[326752010,1715308248984,-151.0,0.00027397,7]
[326752011,1715308248994,-281.777905,0.00027397,7]
[326752012,1715308249003,-559.05,0.00027397,4]
[326752013,1715308249013,-508.73334106,0.00027397,4]
[326752014,1715308249022,-500.0,0.00027397,4]
[326752015,1715308249032,-500.0,0.00027397,4]
[326752016,1715308249041,-154.888523,0.00027397,7]
[326752017,1715308249050,-509.11591922,0.00027397,4]
[326752018,1715308249059,-1099.65,0.00027397,4]
[326752019,1715308249068,-504.84714992,0.00027397,4]
[326752020,1715308249078,-1084.92,0.00027397,4]
[326752021,1715308249088,-310.396917,0.00027397,7]
[326752022,1715308249097,-310.396917,0.00027397,7]
[326752023,1715308249106,-310.396917,0.00027397,7]
[326752024,1715308249116,-310.396917,0.00027397,7]
[326752025,1715308249125,-310.396917,0.00027397,7]
[326752026,1715308249134,-310.396917,0.00027397,7]
[326752027,1715308249143,-310.396917,0.00027397,7]
[326752028,1715308249152,-310.396917,0.00027397,7]
[326752029,1715308249162,-500.0,0.00027397,4]
[326752030,1715308249171,-310.396917,0.00027397,7]
[326752031,1715308249181,-310.396917,0.00027397,7]
[326752032,1715308249191,-310.396917,0.00027397,7]
[326752033,1715308249201,-310.396917,0.00027397,7]
[326752034,1715308249211,-310.396917,0.00027397,7]
[326752035,1715308249221,-500.0,0.00027397,4]
[326752036,1715308249231,-310.396917,0.00027397,7]
[326752037,1715308249241,-310.396917,0.00027397,7]
[326752038,1715308249251,-310.396923,0.00027397,7]
[326752039,1715308249262,-990.93,0.00027397,4]
[326752040,1715308249271,-1878.64,0.00027397,4]
[326752041,1715308249280,-500.0,0.00027397,4]
[326752042,1715308249290,-1013.42,0.00027397,4]
[326752043,1715308249299,-500.0,0.00027397,4]
[326752044,1715308249308,-2018.91,0.00027397,4]
[326752045,1715308249318,-500.45304777,0.00027397,4]
[326752046,1715308249327,-2268.58,0.00027397,4]
[326752047,1715308249336,-500.0,0.00027397,4]
[326752048,1715308249346,-515.83890765,0.00027397,4]
[326752049,1715308249355,-558.59,0.00027397,4]
[326752050,1715308249364,-500.0,0.00027397,4]
[326752051,1715308249373,-498.27264196,0.00027397,4]
[326752052,1715308249383,-500.0,0.00027397,4]
[326752053,1715308249393,-1311.48,0.00027397,4]
[326752054,1715308249404,-1345.13,0.00027397,4]
[326752055,1715308249414,-500.0,0.00027397,4]
[326752056,1715308249423,-500.0,0.00027397,4]
[326752057,1715308249433,-151.0,0.00027397,7]
[326752058,1715308249443,-151.0,0.00027397,7]
[326752059,1715308249452,-1876.75,0.00027397,4]
[326752060,1715308249465,-151.0,0.00027397,7]
[326752061,1715308249474,-744.95,0.00027397,4]
[326752062,1715308249483,-285.072956,0.00027397,7]
[326752063,1715308249492,-1470.12,0.00027397,4]
[326752064,1715308249503,-511.12018405,0.00027397,4]
[326752065,1715308249512,-667.7,0.00027397,4]
[326752066,1715308249521,-500.0,0.00027397,4]
[326752067,1715308249531,-500.0,0.00027397,4]
[326752068,1715308249542,-151.979642,0.00027397,7]
[326752069,1715308249552,-505.40341052,0.00027397,4]
[326752070,1715308249561,-991.23,0.00027397,4]
[326752071,1715308249571,-500.0,0.00027397,4]
[326752072,1715308249580,-500.0,0.00027397,4]
[326752073,1715308249590,-500.0,0.00027397,4]
[326752074,1715308249598,-1925.15,0.00027397,4]
[326752075,1715308249608,-500.0,0.00027397,4]
[326752076,1715308249617,-151.0,0.00027397,7]
[326752077,1715308249627,-470.649487,0.00027397,7]
[326752078,1715308249637,-500.0,0.00027397,4]
[326752079,1715308249647,-5000.0,0.00027397,4]
[326752080,1715308249656,-500.0,0.00027397,4]
[326752081,1715308249665,-151.0,0.00027397,7]
[326752082,1715308249674,-470.649487,0.00027397,7]
[326752083,1715308249684,-151.0,0.00027397,7]
[326752084,1715308249693,-470.649487,0.00027397,7]
[326752085,1715308249702,-151.0,0.00027397,7]
[326752086,1715308249712,-470.649487,0.00027397,7]
[326752087,1715308249721,-229.931306,0.00027397,7]
[326752088,1715308249730,-470.649487,0.00027397,7]
[326752089,1715308249741,-470.649487,0.00027397,7]
[326752090,1715308249750,-730.94,0.00027397,4]
[326752091,1715308249760,-470.649487,0.00027397,7]
[326752092,1715308249770,-470.649487,0.00027397,7]
[326752093,1715308249780,-1036.55,0.00027397,4]
[326752094,1715308249790,-1725.01,0.00027397,4]
[326752095,1715308249799,-470.649487,0.00027397,7]
[326752096,1715308249809,-470.649487,0.00027397,7]
[326752097,1715308249818,-470.649487,0.00027397,7]
[326752098,1715308249829,-470.649487,0.00027397,7]
[326752099,1715308249839,-470.649487,0.00027397,7]
[326752100,1715308249849,-470.649487,0.00027397,7]
[326752101,1715308249858,-470.649487,0.00027397,7]
[326752102,1715308249868,-500.0,0.00027397,4]
[326752103,1715308249876,-470.649494,0.00027397,7]
[326752104,1715308249885,-1654.06,0.00027397,4]
[326752105,1715308249894,-500.0,0.00027397,4]
[326752106,1715308249904,-2056.42,0.00027397,4]
[326752107,1715308249914,-508.26141349,0.00027397,4]
[326752108,1715308249924,-532.30371107,0.00027397,4]
[326752109,1715308249934,-1256.53,0.00027397,4]
[326752110,1715308249943,-151.0,0.00027397,7]
[326752111,1715308249953,-151.0,0.00027397,7]
[326752112,1715308249963,-151.0,0.00027397,7]
[326752113,1715308249972,-1118.21,0.00027397,4]
[326752114,1715308249981,-151.0,0.00027397,7]
[326752115,1715308249990,-226.950456,0.00027397,7]
[326752116,1715308249999,-1070.19,0.00027397,4]
[326752117,1715308250009,-898.87,0.00027397,4]
[326752118,1715308250018,-1329.93,0.00027397,4]
[326752119,1715308250027,-1012.88,0.00027397,4]
[326752120,1715308250037,-500.0,0.00027397,4]
[326752121,1715308250046,-1367.42,0.00027397,4]
[326752122,1715308250055,-1108.9,0.00027397,4]
[326752123,1715308250064,-500.0,0.00027397,4]
[326752124,1715308250074,-500.0,0.00027397,4]
[326752125,1715308250083,-500.0,0.00027397,4]
[326752126,1715308250092,-685.68,0.00027397,4]
[326752127,1715308250101,-500.0,0.00027397,4]
[326752128,1715308250111,-500.0,0.00027397,4]
[326752129,1715308250120,-681.97,0.00027397,4]
[326752130,1715308250129,-500.0,0.00027397,4]
[326752131,1715308250138,-2716.57,0.00027397,4]
[326752132,1715308250147,-1109.55,0.00027397,4]
[326752133,1715308250157,-500.0,0.00027397,4]
[326752134,1715308250166,-625.35,0.00027397,4]
[326752135,1715308250175,-500.0,0.00027397,4]
[326752136,1715308250185,-811.76,0.00027397,4]
[326752137,1715308250195,-774.85,0.00027397,4]
[326752138,1715308250204,-2718.1,0.00027397,4]
[326752139,1715308250213,-500.0,0.00027397,4]
[326752140,1715308250223,-850.11,0.00027397,4]
[326752141,1715308250232,-809.0,0.00027397,4]
[326752142,1715308250241,-1474.65,0.00027397,4]
[326752143,1715308250250,-500.0,0.00027397,4]